[Event "Titled Tuesday Blitz June 21 Early 2022"]
[White "Clawitter, Craig"]
[Black "Einarsson, Halldor Gretar"]
[WhiteFideId "2023105"]
[BlackFideId "2300150"]
[WhiteElo "2259"]
[BlackElo "2114"]
[Result "1/2-1/2"]
[Round "06"]
[TimeControl "180+1"]
[Date "2022.06.21"]
[WhiteClock "0:00:15"]
[BlackClock "0:00:13"]

1. e4 {[%clk 0:03:00]}  c5 {[%clk 0:02:59]} 2. Nf3 {[%clk 0:03:00]}  Nc6 {[%clk 0:02:59]} 3. d4 {[%clk 0:03:01]}  cxd4 {[%clk 0:02:59]} 4. Nxd4 {[%clk 0:03:02]}  Nf6 {[%clk 0:02:59]} 5. Nc3 {[%clk 0:03:02]}  e5 {[%clk 0:02:59]} 6. Ndb5 {[%clk 0:03:03]}  d6 {[%clk 0:03:00]} 7. Bg5 {[%clk 0:03:03]}  a6 {[%clk 0:02:59]} 8. Na3 {[%clk 0:03:04]}  b5 {[%clk 0:02:59]} 9. Bxf6 {[%clk 0:03:05]}  gxf6 {[%clk 0:02:59]} 10. Nd5 {[%clk 0:03:05]}  f5 {[%clk 0:02:59]} 11. Bd3 {[%clk 0:03:06]}  Be6 {[%clk 0:02:57]} 12. O-O {[%clk 0:03:06]}  Bxd5 {[%clk 0:02:55]} 13. exd5 {[%clk 0:03:06]}  Ne7 {[%clk 0:02:54]} 14. c3 {[%clk 0:03:00]}  e4 {[%clk 0:02:52]} 15. Bc2 {[%clk 0:02:55]}  Bg7 {[%clk 0:02:49]} 16. Qh5 {[%clk 0:02:51]}  Qc8 {[%clk 0:02:41]} 17. Rae1 {[%clk 0:02:49]}  b4 {[%clk 0:02:32]} 18. Ba4+ {[%clk 0:02:40]}  Kf8 {[%clk 0:02:30]} 19. cxb4 {[%clk 0:02:24]}  Bxb2 {[%clk 0:02:23]} 20. Nc2 {[%clk 0:02:22]}  Nxd5 {[%clk 0:02:16]} 21. Bb3 {[%clk 0:02:09]}  Ra7 {[%clk 0:01:39]} 22. Bxd5 {[%clk 0:01:54]}  Qxc2 {[%clk 0:01:36]} 23. Qxf5 {[%clk 0:01:55]}  Rg8 {[%clk 0:01:07]} 24. Rxe4 {[%clk 0:01:45]}  Re7 {[%clk 0:00:51]} 25. Rfe1 {[%clk 0:01:12]}  Bd4 {[%clk 0:00:40]} 26. Bxf7 {[%clk 0:00:47]}  Bxf2+ {[%clk 0:00:35]} 27. Qxf2 {[%clk 0:00:39]}  Qxf2+ {[%clk 0:00:34]} 28. Kxf2 {[%clk 0:00:40]}  Rxf7+ {[%clk 0:00:33]} 29. Kg1 {[%clk 0:00:33]}  Rg5 {[%clk 0:00:28]} 30. Re8+ {[%clk 0:00:25]}  Kg7 {[%clk 0:00:27]} 31. R1e6 {[%clk 0:00:24]}  Rd5 {[%clk 0:00:26]} 32. h3 {[%clk 0:00:21]}  Rd2 {[%clk 0:00:25]} 33. R8e7 {[%clk 0:00:13]}  Rxa2 {[%clk 0:00:23]} 34. Rxf7+ {[%clk 0:00:12]}  Kxf7 {[%clk 0:00:23]} 35. Rxd6 {[%clk 0:00:12]}  Rb2 {[%clk 0:00:21]} 36. Rb6 {[%clk 0:00:12]}  h5 {[%clk 0:00:18]} 37. Kh2 {[%clk 0:00:13]}  h4 {[%clk 0:00:17]} 38. Rxa6 {[%clk 0:00:13]}  Rxb4 {[%clk 0:00:16]} 39. Rh6 {[%clk 0:00:12]}  Rd4 {[%clk 0:00:16]} 40. Rh5 {[%clk 0:00:12]}  Rf4 {[%clk 0:00:15]} 41. Rg5 {[%clk 0:00:12]}  Kf6 {[%clk 0:00:15]} 42. Rg4 {[%clk 0:00:12]}  Rxg4 {[%clk 0:00:13]} 43. hxg4 {[%clk 0:00:13]}  Kg6 {[%clk 0:00:13]} 44. Kh3 {[%clk 0:00:12]}  Kg5 {[%clk 0:00:12]} 45. g3 {[%clk 0:00:12]}  hxg3 {[%clk 0:00:12]} 46. Kxg3 {[%clk 0:00:12]}  Kg6 {[%clk 0:00:12]} 47. Kf4 {[%clk 0:00:12]}  Kf6 {[%clk 0:00:12]} 48. g5+ {[%clk 0:00:12]}  Kg6 {[%clk 0:00:13]} 49. Kg4 {[%clk 0:00:13]}  Kg7 {[%clk 0:00:13]} 50. Kf5 {[%clk 0:00:13]}  Kf7 {[%clk 0:00:13]} 51. g6+ {[%clk 0:00:13]}  Kg7 {[%clk 0:00:14]} 52. Kg5 {[%clk 0:00:13]}  Kg8 {[%clk 0:00:14]} 53. Kf5 {[%clk 0:00:13]}  Kg7 {[%clk 0:00:13]} 54. Kg5 {[%clk 0:00:14]}  Kg8 {[%clk 0:00:14]} 55. Kf6 {[%clk 0:00:14]}  Kf8 {[%clk 0:00:14]} 56. g7+ {[%clk 0:00:15]}  Kg8 {[%clk 0:00:14]} 57. Ke7 {[%clk 0:00:15]}  Kxg7 {[%clk 0:00:13]} 1/2-1/2


[Site "https://www.chess.com"]

[Event "Titled Tuesday Blitz June 21 Early 2022"]
[White "D`Arruda, Ricardo D."]
[Black "Martin, Lewis"]
[WhiteFideId "100692"]
[BlackFideId "410551"]
[WhiteElo "2506"]
[BlackElo "2145"]
[Result "1-0"]
[Round "06"]
[TimeControl "180+1"]
[Date "2022.06.21"]
[WhiteClock "0:01:29"]
[BlackClock "0:01:13"]

1. d4 {[%clk 0:02:53]}  d5 {[%clk 0:02:59]} 2. Nf3 {[%clk 0:02:52]}  Nf6 {[%clk 0:02:59]} 3. c4 {[%clk 0:02:52]}  c6 {[%clk 0:02:59]} 4. e3 {[%clk 0:02:53]}  Bf5 {[%clk 0:02:57]} 5. Nc3 {[%clk 0:02:53]}  e6 {[%clk 0:02:57]} 6. Bd3 {[%clk 0:02:53]}  Bxd3 {[%clk 0:02:55]} 7. Qxd3 {[%clk 0:02:54]}  Bd6 {[%clk 0:02:53]} 8. O-O {[%clk 0:02:54]}  O-O {[%clk 0:02:52]} 9. e4 {[%clk 0:02:54]}  dxe4 {[%clk 0:02:52]} 10. Nxe4 {[%clk 0:02:55]}  Nxe4 {[%clk 0:02:52]} 11. Qxe4 {[%clk 0:02:55]}  Nd7 {[%clk 0:02:52]} 12. Bg5 {[%clk 0:02:53]}  Qe8 {[%clk 0:02:48]} 13. Rfe1 {[%clk 0:02:50]}  h6 {[%clk 0:02:45]} 14. Bd2 {[%clk 0:02:47]}  Nf6 {[%clk 0:02:44]} 15. Qh4 {[%clk 0:02:39]}  Nh7 {[%clk 0:02:40]} 16. Re2 {[%clk 0:02:21]}  Be7 {[%clk 0:02:37]} 17. Qg3 {[%clk 0:02:19]}  Kh8 {[%clk 0:02:33]} 18. Rae1 {[%clk 0:02:19]}  Rd8 {[%clk 0:02:31]} 19. Bc3 {[%clk 0:02:19]}  Bf6 {[%clk 0:02:30]} 20. h4 {[%clk 0:02:14]}  Qd7 {[%clk 0:02:22]} 21. Ne5 {[%clk 0:02:09]}  Qd6 {[%clk 0:02:11]} 22. c5 {[%clk 0:01:50]}  Qe7 {[%clk 0:02:09]} 23. h5 {[%clk 0:01:48]}  b5 {[%clk 0:02:04]} 24. Nxc6 {[%clk 0:01:45]}  Qb7 {[%clk 0:01:59]} 25. Nxd8 {[%clk 0:01:45]}  Rxd8 {[%clk 0:01:59]} 26. Qg4 {[%clk 0:01:36]}  b4 {[%clk 0:01:56]} 27. Bd2 {[%clk 0:01:33]}  Rxd4 {[%clk 0:01:54]} 28. Qf3 {[%clk 0:01:30]}  Qxf3 {[%clk 0:01:44]} 29. gxf3 {[%clk 0:01:31]}  Rc4 {[%clk 0:01:39]} 30. Rc1 {[%clk 0:01:31]}  Rxc1+ {[%clk 0:01:15]} 31. Bxc1 {[%clk 0:01:31]}  Bd8 {[%clk 0:01:13]} 32. Rd2 {[%clk 0:01:29]} 1-0


[Site "https://www.chess.com"]

[Event "Titled Tuesday Blitz June 21 Early 2022"]
[White "De Souza, Cristiano Gomes"]
[Black "Khan, Taffin"]
[WhiteFideId "2151758"]
[BlackFideId "19700024"]
[WhiteElo "2068"]
[BlackElo "2013"]
[Result "0-1"]
[Round "06"]
[TimeControl "180+1"]
[Date "2022.06.21"]
[WhiteClock "0:01:43"]
[BlackClock "0:01:11"]

1. d4 {[%clk 0:03:00]}  Nf6 {[%clk 0:02:55]} 2. c4 {[%clk 0:02:59]}  g6 {[%clk 0:02:54]} 3. Nc3 {[%clk 0:02:59]}  d5 {[%clk 0:02:53]} 4. Bf4 {[%clk 0:02:57]}  c6 {[%clk 0:02:44]} 5. Nf3 {[%clk 0:02:54]}  Bg7 {[%clk 0:02:44]} 6. e3 {[%clk 0:02:54]}  O-O {[%clk 0:02:42]} 7. h3 {[%clk 0:02:53]}  Re8 {[%clk 0:02:25]} 8. Rc1 {[%clk 0:02:53]}  Nbd7 {[%clk 0:02:10]} 9. Ne5 {[%clk 0:02:51]}  Nxe5 {[%clk 0:02:10]} 10. dxe5 {[%clk 0:02:50]}  Nd7 {[%clk 0:02:00]} 11. cxd5 {[%clk 0:02:48]}  Nxe5 {[%clk 0:01:53]} 12. dxc6 {[%clk 0:02:46]}  Nxc6 {[%clk 0:01:52]} 13. Bb5 {[%clk 0:02:42]}  Qb6 {[%clk 0:01:36]} 14. Bxc6 {[%clk 0:02:40]}  bxc6 {[%clk 0:01:35]} 15. Qb3 {[%clk 0:02:24]}  Ba6 {[%clk 0:01:31]} 16. Qxb6 {[%clk 0:02:21]}  axb6 {[%clk 0:01:30]} 17. b3 {[%clk 0:02:20]}  c5 {[%clk 0:01:27]} 18. Bc7 {[%clk 0:02:20]}  b5 {[%clk 0:01:25]} 19. a4 {[%clk 0:02:10]}  Rec8 {[%clk 0:01:17]} 20. axb5 {[%clk 0:02:03]}  Bxc3+ {[%clk 0:01:13]} 21. Rxc3 {[%clk 0:02:01]}  Bxb5 {[%clk 0:01:13]} 22. Rxc5 {[%clk 0:01:45]}  Ra1+ {[%clk 0:01:11]} 23. Kd2 {[%clk 0:01:43]}  Rxh1 {[%clk 0:01:11]} 0-1


[Site "https://www.chess.com"]

[Event "Titled Tuesday Blitz June 21 Early 2022"]
[White "Domingo Nunez, Ruben"]
[Black "Flynn, Jacob"]
[WhiteFideId "22245570"]
[BlackFideId "2509393"]
[WhiteElo "2376"]
[BlackElo "1896"]
[Result "1-0"]
[Round "06"]
[TimeControl "180+1"]
[Date "2022.06.21"]
[WhiteClock "0:00:13"]
[BlackClock "0:00:03"]

1. c4 {[%clk 0:03:00]}  Nf6 {[%clk 0:02:48]} 2. Nc3 {[%clk 0:03:00]}  c5 {[%clk 0:02:47]} 3. g3 {[%clk 0:03:00]}  Nc6 {[%clk 0:02:46]} 4. Bg2 {[%clk 0:03:00]}  e6 {[%clk 0:02:46]} 5. e4 {[%clk 0:02:47]}  d5 {[%clk 0:02:40]} 6. cxd5 {[%clk 0:02:40]}  exd5 {[%clk 0:02:40]} 7. Nxd5 {[%clk 0:02:41]}  Nxd5 {[%clk 0:02:35]} 8. exd5 {[%clk 0:02:42]}  Nd4 {[%clk 0:02:34]} 9. d3 {[%clk 0:02:28]}  Be7 {[%clk 0:02:17]} 10. h3 {[%clk 0:02:27]}  O-O {[%clk 0:02:15]} 11. Ne2 {[%clk 0:02:28]}  Nxe2 {[%clk 0:01:59]} 12. Qxe2 {[%clk 0:02:29]}  Re8 {[%clk 0:01:58]} 13. O-O {[%clk 0:02:25]}  Bd6 {[%clk 0:01:46]} 14. Qd1 {[%clk 0:02:11]}  Qf6 {[%clk 0:01:38]} 15. Qb3 {[%clk 0:01:33]}  b6 {[%clk 0:01:23]} 16. Be3 {[%clk 0:01:29]}  Bf5 {[%clk 0:01:16]} 17. Rad1 {[%clk 0:01:24]}  Be5 {[%clk 0:01:09]} 18. Rd2 {[%clk 0:01:00]}  Bd4 {[%clk 0:00:55]} 19. Bxd4 {[%clk 0:00:57]}  Qxd4 {[%clk 0:00:54]} 20. Qc4 {[%clk 0:00:57]}  Rad8 {[%clk 0:00:30]} 21. g4 {[%clk 0:00:43]}  Bg6 {[%clk 0:00:25]} 22. Qxd4 {[%clk 0:00:32]}  cxd4 {[%clk 0:00:24]} 23. Rc1 {[%clk 0:00:33]}  Rd7 {[%clk 0:00:23]} 24. Rc4 {[%clk 0:00:31]}  f6 {[%clk 0:00:15]} 25. Rxd4 {[%clk 0:00:28]}  Bf7 {[%clk 0:00:15]} 26. Rc2 {[%clk 0:00:24]}  Red8 {[%clk 0:00:11]} 27. d6 {[%clk 0:00:24]}  g5 {[%clk 0:00:09]} 28. Rc7 {[%clk 0:00:24]}  Rxd6 {[%clk 0:00:08]} 29. Rxd6 {[%clk 0:00:22]}  Rxd6 {[%clk 0:00:09]} 30. Be4 {[%clk 0:00:20]}  Bg6 {[%clk 0:00:08]} 31. Rxa7 {[%clk 0:00:18]}  Bxe4 {[%clk 0:00:07]} 32. dxe4 {[%clk 0:00:19]}  Rd2 {[%clk 0:00:06]} 33. b3 {[%clk 0:00:19]}  Rb2 {[%clk 0:00:04]} 34. Ra4 {[%clk 0:00:18]}  b5 {[%clk 0:00:03]} 35. Rb4 {[%clk 0:00:18]}  Rxa2 {[%clk 0:00:04]} 36. Rxb5 {[%clk 0:00:19]}  Rb2 {[%clk 0:00:04]} 37. Kg2 {[%clk 0:00:19]}  Kg7 {[%clk 0:00:04]} 38. Rb7+ {[%clk 0:00:19]}  Kg6 {[%clk 0:00:04]} 39. b4 {[%clk 0:00:19]}  Rb3 {[%clk 0:00:03]} 40. b5 {[%clk 0:00:20]}  h5 {[%clk 0:00:04]} 41. b6 {[%clk 0:00:15]}  h4 {[%clk 0:00:03]} 42. Rb8 {[%clk 0:00:15]}  Kg7 {[%clk 0:00:02]} 43. f3 {[%clk 0:00:10]}  Kh7 {[%clk 0:00:02]} 44. Kf2 {[%clk 0:00:11]}  Kg7 {[%clk 0:00:03]} 45. Ke2 {[%clk 0:00:10]}  Rb2+ {[%clk 0:00:02]} 46. Ke3 {[%clk 0:00:11]}  Rb3+ {[%clk 0:00:02]} 47. Ke2 {[%clk 0:00:10]}  Rb2+ {[%clk 0:00:02]} 48. Kd3 {[%clk 0:00:11]}  Rb3+ {[%clk 0:00:03]} 49. Kc4 {[%clk 0:00:11]}  Rxf3 {[%clk 0:00:03]} 50. b7 {[%clk 0:00:12]}  Rf4 {[%clk 0:00:01]} 51. Ra8 {[%clk 0:00:12]}  Rxe4+ {[%clk 0:00:01]} 52. Kc5 {[%clk 0:00:13]}  Re5+ {[%clk 0:00:02]} 53. Kc6 {[%clk 0:00:13]}  Re6+ {[%clk 0:00:01]} 54. Kd7 {[%clk 0:00:12]}  Rb6 {[%clk 0:00:01]} 55. b8=Q {[%clk 0:00:12]}  Rxb8 {[%clk 0:00:02]} 56. Rxb8 {[%clk 0:00:13]}  f5 {[%clk 0:00:02]} 57. gxf5 {[%clk 0:00:14]}  Kf6 {[%clk 0:00:03]} 58. Rf8+ {[%clk 0:00:13]}  Ke5 {[%clk 0:00:03]} 59. f6 {[%clk 0:00:13]} 1-0


[Site "https://www.chess.com"]

[Event "Titled Tuesday Blitz June 21 Early 2022"]
[White "Dubov, Daniil"]
[Black "Terry, Renato"]
[WhiteFideId "24126055"]
[BlackFideId "3803457"]
[WhiteElo "2791"]
[BlackElo "2577"]
[Result "1-0"]
[Round "06"]
[TimeControl "180+1"]
[Date "2022.06.21"]
[WhiteClock "0:00:07"]
[BlackClock "0:00:01"]

1. d4 {[%clk 0:03:00]}  e6 {[%clk 0:02:58]} 2. Nf3 {[%clk 0:03:00]}  Nf6 {[%clk 0:02:59]} 3. Bg5 {[%clk 0:02:59]}  b6 {[%clk 0:02:58]} 4. e4 {[%clk 0:02:54]}  h6 {[%clk 0:02:57]} 5. Bxf6 {[%clk 0:02:55]}  Qxf6 {[%clk 0:02:58]} 6. Nbd2 {[%clk 0:02:54]}  Bb7 {[%clk 0:02:58]} 7. Bd3 {[%clk 0:02:53]}  d6 {[%clk 0:02:56]} 8. O-O {[%clk 0:02:52]}  Nd7 {[%clk 0:02:56]} 9. a4 {[%clk 0:02:51]}  a5 {[%clk 0:02:52]} 10. Re1 {[%clk 0:02:51]}  Qe7 {[%clk 0:02:52]} 11. c3 {[%clk 0:02:41]}  g6 {[%clk 0:02:50]} 12. Nf1 {[%clk 0:02:40]}  Bg7 {[%clk 0:02:48]} 13. Ne3 {[%clk 0:02:40]}  O-O {[%clk 0:02:47]} 14. Qc2 {[%clk 0:02:40]}  c5 {[%clk 0:02:28]} 15. Qb3 {[%clk 0:02:31]}  Rab8 {[%clk 0:02:28]} 16. Rad1 {[%clk 0:02:28]}  Ba8 {[%clk 0:02:22]} 17. d5 {[%clk 0:02:24]}  e5 {[%clk 0:02:18]} 18. Nd2 {[%clk 0:02:22]}  h5 {[%clk 0:02:15]} 19. Bb5 {[%clk 0:02:20]}  Nf6 {[%clk 0:02:10]} 20. Bc6 {[%clk 0:02:19]}  Qc7 {[%clk 0:02:10]} 21. Qb5 {[%clk 0:02:12]}  Rfc8 {[%clk 0:02:06]} 22. Bxa8 {[%clk 0:02:11]}  Rxa8 {[%clk 0:02:06]} 23. Nec4 {[%clk 0:02:07]}  Rab8 {[%clk 0:02:06]} 24. Na3 {[%clk 0:02:06]}  Bf8 {[%clk 0:01:32]} 25. Qd3 {[%clk 0:01:58]}  Qd7 {[%clk 0:01:30]} 26. Nb5 {[%clk 0:01:56]}  h4 {[%clk 0:01:11]} 27. Nc4 {[%clk 0:01:53]}  Nh5 {[%clk 0:01:08]} 28. g3 {[%clk 0:01:38]}  Rd8 {[%clk 0:01:01]} 29. Qf3 {[%clk 0:01:35]}  Qh3 {[%clk 0:00:57]} 30. Rd3 {[%clk 0:01:29]}  hxg3 {[%clk 0:00:57]} 31. fxg3 {[%clk 0:01:14]}  Rb7 {[%clk 0:00:53]} 32. Rf1 {[%clk 0:01:11]}  Qd7 {[%clk 0:00:45]} 33. Qf2 {[%clk 0:00:56]}  Qg4 {[%clk 0:00:42]} 34. Qf3 {[%clk 0:00:52]}  Qxf3 {[%clk 0:00:41]} 35. Rdxf3 {[%clk 0:00:52]}  Rdd7 {[%clk 0:00:29]} 36. Kg2 {[%clk 0:00:51]}  Kg7 {[%clk 0:00:25]} 37. h4 {[%clk 0:00:48]}  Kg8 {[%clk 0:00:26]} 38. Ne3 {[%clk 0:00:27]}  Bh6 {[%clk 0:00:23]} 39. Ng4 {[%clk 0:00:26]}  Bg7 {[%clk 0:00:23]} 40. Nf2 {[%clk 0:00:26]}  Bh6 {[%clk 0:00:20]} 41. Nh3 {[%clk 0:00:25]}  Kg7 {[%clk 0:00:20]} 42. Kh1 {[%clk 0:00:23]}  Kg8 {[%clk 0:00:20]} 43. g4 {[%clk 0:00:22]}  Nf4 {[%clk 0:00:20]} 44. g5 {[%clk 0:00:22]}  Nxh3 {[%clk 0:00:18]} 45. Rxh3 {[%clk 0:00:22]}  Bg7 {[%clk 0:00:17]} 46. Rhf3 {[%clk 0:00:22]}  Rd8 {[%clk 0:00:16]} 47. Kg2 {[%clk 0:00:22]}  Rbd7 {[%clk 0:00:13]} 48. Kg3 {[%clk 0:00:21]}  Rf8 {[%clk 0:00:09]} 49. Kg4 {[%clk 0:00:20]}  Rfd8 {[%clk 0:00:09]} 50. h5 {[%clk 0:00:18]}  Rc8 {[%clk 0:00:09]} 51. Na3 {[%clk 0:00:13]}  c4 {[%clk 0:00:07]} 52. Nb5 {[%clk 0:00:12]}  Rcd8 {[%clk 0:00:03]} 53. R3f2 {[%clk 0:00:08]}  Rc8 {[%clk 0:00:03]} 54. Rxf7 {[%clk 0:00:06]}  Rxf7 {[%clk 0:00:01]} 55. Rxf7 {[%clk 0:00:07]}  Kxf7 {[%clk 0:00:01]} 56. Nxd6+ {[%clk 0:00:06]}  Ke7 {[%clk 0:00:02]} 57. Nxc8+ {[%clk 0:00:06]}  Kd8 {[%clk 0:00:01]} 58. Nxb6 {[%clk 0:00:07]} 1-0


[Site "https://www.chess.com"]

[Event "Titled Tuesday Blitz June 21 Early 2022"]
[White "Dushyant Sharma"]
[Black "Samaganova, Aleksandra"]
[WhiteFideId "25065130"]
[BlackFideId "13800221"]
[WhiteElo "2105"]
[BlackElo "1864"]
[Result "1-0"]
[Round "06"]
[TimeControl "180+1"]
[Date "2022.06.21"]
[WhiteClock "0:00:15"]
[BlackClock "0:00:01"]

1. e4 {[%clk 0:03:00]}  c5 {[%clk 0:02:59]} 2. Nf3 {[%clk 0:03:00]}  e6 {[%clk 0:02:57]} 3. d4 {[%clk 0:03:01]}  cxd4 {[%clk 0:02:57]} 4. Nxd4 {[%clk 0:03:02]}  a6 {[%clk 0:02:56]} 5. Nc3 {[%clk 0:03:02]}  b5 {[%clk 0:02:54]} 6. f4 {[%clk 0:03:02]}  Bb7 {[%clk 0:02:53]} 7. Bd3 {[%clk 0:03:03]}  Qc7 {[%clk 0:02:53]} 8. Nf3 {[%clk 0:02:59]}  Nf6 {[%clk 0:02:52]} 9. a3 {[%clk 0:02:59]}  d5 {[%clk 0:02:50]} 10. exd5 {[%clk 0:02:57]}  Nxd5 {[%clk 0:02:51]} 11. Nxd5 {[%clk 0:02:58]}  Bxd5 {[%clk 0:02:52]} 12. O-O {[%clk 0:02:58]}  Bc5+ {[%clk 0:02:52]} 13. Kh1 {[%clk 0:02:59]}  Nd7 {[%clk 0:02:45]} 14. b4 {[%clk 0:02:54]}  Be7 {[%clk 0:02:41]} 15. Bb2 {[%clk 0:02:53]}  O-O {[%clk 0:02:33]} 16. Qe1 {[%clk 0:02:44]}  Bxf3 {[%clk 0:02:21]} 17. Rxf3 {[%clk 0:02:44]}  Bf6 {[%clk 0:02:21]} 18. Bxh7+ {[%clk 0:02:23]}  Kxh7 {[%clk 0:02:16]} 19. Rh3+ {[%clk 0:02:20]}  Kg8 {[%clk 0:01:57]} 20. Bxf6 {[%clk 0:02:18]}  Nxf6 {[%clk 0:01:52]} 21. Qh4 {[%clk 0:02:18]}  Nh5 {[%clk 0:01:41]} 22. Qxh5 {[%clk 0:02:17]}  f6 {[%clk 0:01:37]} 23. Qh7+ {[%clk 0:01:55]}  Kf7 {[%clk 0:01:37]} 24. Rg3 {[%clk 0:01:54]}  Rg8 {[%clk 0:01:32]} 25. Re1 {[%clk 0:01:40]}  Qxf4 {[%clk 0:01:20]} 26. Qg6+ {[%clk 0:01:36]}  Ke7 {[%clk 0:01:10]} 27. Rf3 {[%clk 0:01:28]}  Qd2 {[%clk 0:00:38]} 28. Qe4 {[%clk 0:01:17]}  Qd7 {[%clk 0:00:23]} 29. Rd3 {[%clk 0:01:01]}  Qc8 {[%clk 0:00:17]} 30. Rc3 {[%clk 0:00:36]}  Qd7 {[%clk 0:00:10]} 31. Rd3 {[%clk 0:00:24]}  Qc8 {[%clk 0:00:10]} 32. h3 {[%clk 0:00:25]}  Ra7 {[%clk 0:00:06]} 33. Red1 {[%clk 0:00:17]}  Kf7 {[%clk 0:00:02]} 34. Qg4 {[%clk 0:00:16]}  g6 {[%clk 0:00:01]} 35. Qh4 {[%clk 0:00:15]} 1-0


[Site "https://www.chess.com"]

[Event "Titled Tuesday Blitz June 21 Early 2022"]
[White "Estrada Nieto, Julian"]
[Black "Papp, Levente"]
[WhiteFideId "5101018"]
[BlackFideId "751243"]
[WhiteElo "2252"]
[BlackElo "2308"]
[Result "1-0"]
[Round "06"]
[TimeControl "180+1"]
[Date "2022.06.21"]
[WhiteClock "0:00:13"]
[BlackClock "0:00:01"]

1. e4 {[%clk 0:03:00]}  e6 {[%clk 0:03:00]} 2. d4 {[%clk 0:03:00]}  d5 {[%clk 0:03:00]} 3. Nd2 {[%clk 0:03:00]}  Nf6 {[%clk 0:03:00]} 4. e5 {[%clk 0:03:00]}  Nfd7 {[%clk 0:03:01]} 5. Bd3 {[%clk 0:03:01]}  c5 {[%clk 0:03:01]} 6. c3 {[%clk 0:03:01]}  Nc6 {[%clk 0:03:02]} 7. Ne2 {[%clk 0:03:02]}  cxd4 {[%clk 0:03:03]} 8. cxd4 {[%clk 0:03:02]}  f6 {[%clk 0:03:04]} 9. exf6 {[%clk 0:03:03]}  Nxf6 {[%clk 0:03:05]} 10. Nf3 {[%clk 0:03:03]}  Bd6 {[%clk 0:03:06]} 11. O-O {[%clk 0:03:03]}  O-O {[%clk 0:03:05]} 12. Bf4 {[%clk 0:02:58]}  Bxf4 {[%clk 0:03:05]} 13. Nxf4 {[%clk 0:02:59]}  Ne4 {[%clk 0:03:06]} 14. Qc1 {[%clk 0:02:52]}  Ng5 {[%clk 0:03:06]} 15. Nxg5 {[%clk 0:02:50]}  Qxg5 {[%clk 0:03:07]} 16. Ne2 {[%clk 0:02:40]}  Qxc1 {[%clk 0:03:01]} 17. Raxc1 {[%clk 0:02:40]}  a6 {[%clk 0:03:02]} 18. Rfd1 {[%clk 0:02:31]}  Bd7 {[%clk 0:03:02]} 19. f3 {[%clk 0:02:25]}  Rac8 {[%clk 0:03:00]} 20. Kf2 {[%clk 0:02:15]}  Kf7 {[%clk 0:02:32]} 21. Ke3 {[%clk 0:02:14]}  Ke7 {[%clk 0:02:28]} 22. a3 {[%clk 0:02:08]}  Kd6 {[%clk 0:02:27]} 23. h3 {[%clk 0:01:59]}  Ne7 {[%clk 0:02:12]} 24. Bb1 {[%clk 0:01:34]}  g6 {[%clk 0:02:00]} 25. Nf4 {[%clk 0:01:33]}  Bb5 {[%clk 0:01:56]} 26. b3 {[%clk 0:01:21]}  Nf5+ {[%clk 0:01:51]} 27. Bxf5 {[%clk 0:01:19]}  exf5 {[%clk 0:01:51]} 28. a4 {[%clk 0:01:17]}  Rfe8+ {[%clk 0:01:46]} 29. Kf2 {[%clk 0:01:17]}  Bc6 {[%clk 0:01:25]} 30. Nd3 {[%clk 0:01:17]}  a5 {[%clk 0:01:24]} 31. Ne5 {[%clk 0:01:11]}  b5 {[%clk 0:01:14]} 32. Nxc6 {[%clk 0:00:49]}  Rxc6 {[%clk 0:01:15]} 33. axb5 {[%clk 0:00:50]}  Rxc1 {[%clk 0:00:45]} 34. Rxc1 {[%clk 0:00:49]}  Rb8 {[%clk 0:00:44]} 35. Rc6+ {[%clk 0:00:46]}  Kd7 {[%clk 0:00:43]} 36. Rc5 {[%clk 0:00:45]}  Kd6 {[%clk 0:00:42]} 37. Kg3 {[%clk 0:00:42]}  g5 {[%clk 0:00:37]} 38. h4 {[%clk 0:00:39]}  h6 {[%clk 0:00:37]} 39. Rc6+ {[%clk 0:00:38]}  Kd7 {[%clk 0:00:36]} 40. Rxh6 {[%clk 0:00:30]}  gxh4+ {[%clk 0:00:36]} 41. Kxh4 {[%clk 0:00:27]}  Rxb5 {[%clk 0:00:37]} 42. Kg5 {[%clk 0:00:25]}  Rxb3 {[%clk 0:00:36]} 43. Kxf5 {[%clk 0:00:25]}  a4 {[%clk 0:00:20]} 44. Ra6 {[%clk 0:00:24]}  a3 {[%clk 0:00:13]} 45. Ke5 {[%clk 0:00:24]}  Kc7 {[%clk 0:00:11]} 46. Kxd5 {[%clk 0:00:22]}  Kb7 {[%clk 0:00:12]} 47. Ra4 {[%clk 0:00:22]}  Kb6 {[%clk 0:00:11]} 48. f4 {[%clk 0:00:20]}  Kb5 {[%clk 0:00:10]} 49. Ra8 {[%clk 0:00:20]}  Rg3 {[%clk 0:00:10]} 50. f5 {[%clk 0:00:17]}  Kb4 {[%clk 0:00:09]} 51. f6 {[%clk 0:00:17]}  Rg5+ {[%clk 0:00:02]} 52. Ke6 {[%clk 0:00:16]}  Rxg2 {[%clk 0:00:02]} 53. f7 {[%clk 0:00:16]}  Re2+ {[%clk 0:00:03]} 54. Kd6 {[%clk 0:00:15]}  Rf2 {[%clk 0:00:01]} 55. f8=Q {[%clk 0:00:15]}  a2 {[%clk 0:00:01]} 56. Qxf2 {[%clk 0:00:13]} 1-0


[Site "https://www.chess.com"]

[Event "Titled Tuesday Blitz June 21 Early 2022"]
[White "Fromm, Marius"]
[Black "Lagno, Kateryna"]
[WhiteFideId "12993190"]
[BlackFideId "14109336"]
[WhiteElo "2274"]
[BlackElo "2522"]
[Result "0-1"]
[Round "06"]
[TimeControl "180+1"]
[Date "2022.06.21"]
[WhiteClock "0:00:02"]
[BlackClock "0:00:35"]

1. e4 {[%clk 0:03:00]}  e5 {[%clk 0:03:00]} 2. Nf3 {[%clk 0:03:01]}  Nc6 {[%clk 0:03:00]} 3. Bc4 {[%clk 0:03:01]}  Bc5 {[%clk 0:03:00]} 4. d3 {[%clk 0:03:01]}  Nf6 {[%clk 0:03:00]} 5. O-O {[%clk 0:03:02]}  a6 {[%clk 0:02:59]} 6. c3 {[%clk 0:03:02]}  d6 {[%clk 0:02:58]} 7. a4 {[%clk 0:03:02]}  Ba7 {[%clk 0:02:56]} 8. Nbd2 {[%clk 0:03:02]}  O-O {[%clk 0:02:55]} 9. h3 {[%clk 0:03:02]}  h6 {[%clk 0:02:53]} 10. Re1 {[%clk 0:03:02]}  Re8 {[%clk 0:02:53]} 11. b4 {[%clk 0:03:01]}  Be6 {[%clk 0:02:53]} 12. Bxe6 {[%clk 0:02:59]}  Rxe6 {[%clk 0:02:53]} 13. Qc2 {[%clk 0:03:00]}  Ne7 {[%clk 0:02:45]} 14. c4 {[%clk 0:02:34]}  Ng6 {[%clk 0:02:41]} 15. Nf1 {[%clk 0:02:30]}  Nh5 {[%clk 0:02:40]} 16. Be3 {[%clk 0:02:25]}  Ngf4 {[%clk 0:02:30]} 17. Kh2 {[%clk 0:02:21]}  Rf6 {[%clk 0:02:20]} 18. Ng3 {[%clk 0:02:05]}  Nxg3 {[%clk 0:02:00]} 19. fxg3 {[%clk 0:02:06]}  Bxe3 {[%clk 0:02:00]} 20. Rxe3 {[%clk 0:02:05]}  Ne6 {[%clk 0:01:57]} 21. Qb2 {[%clk 0:01:42]}  Qd7 {[%clk 0:01:51]} 22. Ree1 {[%clk 0:01:34]}  Rf8 {[%clk 0:01:43]} 23. Rf1 {[%clk 0:01:23]}  Rg6 {[%clk 0:01:35]} 24. Nh4 {[%clk 0:01:20]}  Rg5 {[%clk 0:01:35]} 25. Nf3 {[%clk 0:01:15]}  Rg6 {[%clk 0:01:31]} 26. Rf2 {[%clk 0:01:13]}  Qd8 {[%clk 0:01:24]} 27. Raf1 {[%clk 0:01:12]}  f5 {[%clk 0:01:01]} 28. Nh4 {[%clk 0:01:09]}  Rxg3 {[%clk 0:01:00]} 29. Nxf5 {[%clk 0:00:44]}  Rg6 {[%clk 0:00:47]} 30. c5 {[%clk 0:00:17]}  Kh7 {[%clk 0:00:38]} 31. cxd6 {[%clk 0:00:16]}  cxd6 {[%clk 0:00:39]} 32. Qb3 {[%clk 0:00:12]}  Rgf6 {[%clk 0:00:37]} 33. g3 {[%clk 0:00:10]}  g6 {[%clk 0:00:36]} 34. g4 {[%clk 0:00:01]}  gxf5 {[%clk 0:00:36]} 35. gxf5 {[%clk 0:00:02]}  Nf4 {[%clk 0:00:35]} 0-1


[Site "https://www.chess.com"]